Cogmind - Beta 13 @@@ ROGUE MODE // 2024.04.22 @ 17:17:11 Player: Biasface Result: Destroyed by G-34 Mercenary with Small Laser Performance ------------- Evolutions (0) 0 Regions Visited (4) 800 Robots Destroyed (27) 135 Value Destroyed (726) 726 Prototype IDs (23) 460 Alien Tech Used (0) 0 Bonus (300) 300 TOTAL SCORE: 2421 Bonus ------- Aligned with FarCom 300 Cogmind --------- Core Integrity 0/250 Matter 231/300 Energy 100/100 System Corruption 1% Temperature Cool (6) Movement Core (700) Ox13 Location -9/Mines Parts ------- > --- POWER (1) -------- (None) > --- PROPULSION (2) --- (None) > --- UTILITY (2) ------ High-capacity Storage Unit Targeting Computer > --- WEAPON (2) ------- (None) > --- INVENTORY (20) --- Ion Engine Ion Engine Light Nuclear Core Light Treads Light Treads Aluminum Leg Aluminum Leg Improved Heat Sink Visual Processing Unit Targeting Computer Light Armor Plating Light Armor Plating Trap Reconfigurator Assault Rifle Light Assault Rifle Peak State ------------ > --- POWER ------------ Light Angular Momentum Engine > --- PROPULSION ------- Light Treads Light Treads > --- UTILITY ---------- High-capacity Storage Unit Seismic Detector > --- WEAPON ----------- Assault Rifle Light Assault Rifle > --- INVENTORY -------- Ion Engine Ion Engine Light Nuclear Core Light Treads Light Treads Aluminum Leg Aluminum Leg Hover Unit Hover Unit Improved Heat Sink Visual Processing Unit Targeting Computer Targeting Computer Light Armor Plating Light Armor Plating Trap Reconfigurator Assault Rifle Grenade Launcher [Rating: 14] Favorites ----------- Power Light Angular Momentum Engine Engine Light Angular Momentum Engine Propulsion Light Treads Treads Light Treads Utility Seismic Detector Device Seismic Detector Storage High-capacity Storage Unit Processor Targeting Computer Weapon Assault Rifle Energy Gun Small Laser Ballistic Gun Assault Rifle Launcher Grenade Launcher Build | -11 -10 -10 -10 -9 ------- Run | Yrd Mat Min Exi Min Slots Evolved . | . . . . . Power . | . . . . . Propulsion . | . . . . . Utility . | . . . . . Weapon . | . . . . . Parts Attached 21 | 8 3 6 . 4 Power 4 | 1 2 1 . . Engine 4 | 1 2 1 . . Core . | . . . . . Reactor . | . . . . . Propulsion 4 | 2 . 2 . . Treads 4 | 2 . 2 . . Leg . | . . . . . Wheel . | . . . . . Hover . | . . . . . Flight . | . . . . . Utility 4 | 2 1 . . 1 Device 1 | 1 . . . . Storage 2 | 1 1 . . . Processor 1 | . . . . 1 Hackware . | . . . . . Protection . | . . . . . Artifact . | . . . . . Weapon 9 | 3 . 3 . 3 Energy Gun 2 | 1 . 1 . . Energy Cannon . | . . . . . Ballistic Gun 5 | 2 . 2 . 1 Ballistic Cannon . | . . . . . Launcher 2 | . . . . 2 Special Weapon . | . . . . . Impact Weapon . | . . . . . Slashing Weapon . | . . . . . Piercing Weapon . | . . . . . Special Melee Weapon . | . . . . . Unidentified Prototypes . | . . . . . Parts Lost 6 | . . 1 . 5 Power 1 | . . . . 1 Propulsion 2 | . . . . 2 Utility . | . . . . . Weapon 3 | . . 1 . 2 Highest Loss Streak 5 | . . 1 . 5 To Critical Strikes . | . . . . . Average Slot Usage (%) 99 | . 100 99 100 89 Engine 13 | . 14 14 14 9 Treads 27 | . 28 28 28 26 Device 13 | . 14 14 14 1 Storage 14 | . 14 14 14 14 Ballistic Gun 27 | . 28 25 28 21 Naked Turns . | . . . . . Heaviest Build 54 | 13 50 54 53 54 Greatest Support 40 | 40 40 40 40 40 Greatest Overweight (x) 13 | 2 1 1 1 13 Average Overweight (x) . | . . 1 1 1 Largest Inventory Capacity 20 | 8 20 20 20 20 Average Capacity 19 | 7 19 20 20 20 Most Carried 19 | 4 13 19 18 16 Average Carried 12 | 2 10 16 16 15 Final Capacity 20 | 8 20 20 20 20 Final Carried 17 | 4 13 17 16 15 Class Distribution -------------------- 60% | Mutant 39% | Scavenger-Mutant Dominant Class ---------------- Mutant | -10/Materials Scavenger-Mutant | -10/Mines Scavenger-Mutant | -10/Exiles Mutant | -9/Mines Resources | -11 -10 -10 -10 -9 ----------- Run | Yrd Mat Min Exi Min Matter Collected 791 | 226 310 163 . 92 Remotely . | . . . . . Salvage Created 929 | 24 532 227 . 146 Parts 66 | 4 43 13 . 6 Haulers Intercepted 2 | . 2 . . . Recyclers Shooed . | . . . . . Parts Field Recycled . | . . . . . Retrieved Matter . | . . . . . Parts Self-Destructed . | . . . . . Prevented . | . . . . . Kills | -11 -10 -10 -10 -9 ------- Run | Yrd Mat Min Exi Min Combat Hostiles Destroyed 20 | . 9 5 . 6 Guns 15 | . 9 5 . 1 AOE 5 | . . . . 5 Classes Destroyed 7 | 1 6 . . . Tunneler 1 | 1 . . . . Hauler 2 | . 2 . . . Recycler 1 | . 1 . . . Operator 1 | . 1 . . . Watcher 2 | . 2 . . . Swarmer 5 | . 3 . . 2 Grunt 15 | . 6 5 . 4 Best Kill Streak 3 | 1 3 2 . 3 Combat Bots Only 3 | . 3 2 . 3 Max Kills in Single Turn 2 | 1 1 1 . 2 Gunslinging . | . . . . . Exploded 2 | . . . . 2 Melee . | . . . . . Uniques/NPCs Destroyed . | . . . . . Combat | -11 -10 -10 -10 -9 -------- Run | Yrd Mat Min Exi Min Hostile Shots Fired 137 | . 35 32 . 70 Missed 29 | . 9 5 . 15 Damage Taken 1200 | . 262 366 . 572 Core 250 | . 42 102 . 106 Absorbed by Shields . | . . . . . Core Remaining (%) 100 | 100 . . . . Volleys Fired 72 | 1 38 19 . 14 Largest 2 | 2 2 2 . 2 Hottest 60 | 40 40 60 . 50 Shots Fired 134 | 2 76 38 . 18 Gun 124 | 2 76 38 . 8 Cannon . | . . . . . Launcher 10 | . . . . 10 Special . | . . . . . Kinetic 123 | 2 76 37 . 8 Thermal 1 | . . 1 . . Explosive 10 | . . . . 10 Electromagnetic . | . . . . . Robot Hit Streak 10 | 1 7 10 . 5 Robot Miss Streak 4 | 1 4 1 . 4 Penetration Max . | . . . . . Secondary Targets 6 | . 4 2 . . Max Gunslinging Chain 1 | . 1 1 . . Shots Hit Robots 85 | 1 46 28 . 10 Core Hits 50 | 1 26 14 . 9 Critical Kills . | . . . . . Critical Parts Destroyed . | . . . . . Critical Strikes . | . . . . . Melee Attacks . | . . . . . Impact . | . . . . . Slashing . | . . . . . Piercing . | . . . . . Sneak Attacks . | . . . . . Combat Hostiles . | . . . . . Follow-up Attacks . | . . . . . Damage Inflicted 1590 | 13 599 328 . 650 Guns 1006 | 13 588 328 . 77 Cannons . | . . . . . Explosions 573 | . . . . 573 Melee . | . . . . . Ramming 11 | . 11 . . . Kinetic 994 | 13 588 316 . 77 Thermal 163 | . . 12 . 151 Explosive 422 | . . . . 422 Electromagnetic . | . . . . . Impact . | . . . . . Slashing . | . . . . . Piercing . | . . . . . Highest Corruption 1 | . 1 1 1 1 Average Corruption 1 | . 1 1 1 1 Corruption Purged . | . . . . . Corruption Blocked . | . . . . . Effects 15 | . 3 8 3 1 Message Errors 4 | . 2 2 . . Matter Fused 5 | . . 3 2 . Heat Flow Errors 2 | . 1 1 . . Energy Discharges 2 | . . 2 . . Data Loss (minor) 1 | . . . 1 . Weapon Failures 1 | . . . . 1 Overload Shots . | . . . . . Overflow Damage 55 | . . . . 55 Projectiles . | . . . . . Explosions 55 | . . . . 55 Melee . | . . . . . Knockbacks . | . . . . . Impact . | . . . . . Kinetic . | . . . . . Secondary . | . . . . . Self-Inflicted Damage 43 | . . . . 43 Shots 2 | . . . . 2 Rammed 4 | . 4 . . . Targets Rammed 4 | . 4 . . . Kicked . | . . . . . Crushed . | . . . . . Highest Temperature 239 | . 239 142 . 23 Average Temperature 34 | . 89 21 . 12 Received Heat Transfer 444 | . 102 207 . 135 Siege Activations . | . . . . . Robots Corrupted . | . . . . . Combat Hostiles . | . . . . . Parts Fried . | . . . . . Impact Corruptions . | . . . . . Robots Melted . | . . . . . Combat Hostiles . | . . . . . Parts Melted . | . . . . . Heat Transferred 175 | . . 25 . 150 Parts Sabotaged . | . . . . . Parts Stolen . | . . . . . Parts Stripped . | . . . . . Power Chain Reactions . | . . . . . Alert | -11 -10 -10 -10 -9 ------- Run | Yrd Mat Min Exi Min Peak Influence 201 | 5 152 88 . 201 Initial 3 | . 3 3 . . Average 37 | 2 36 35 . 121 Maximum Alert Level 1 | . . . . 1 Low Security (%) 99 | 100 100 100 . 97 Level 1 . | . . . . 2 Level 2 . | . . . . . Level 3 . | . . . . . Level 4 . | . . . . . Level 5 . | . . . . . High Security . | . . . . . Max Security . | . . . . . Squads Dispatched 1 | . 1 . . . Investigation 1 | . 1 . . . Extermination . | . . . . . Reinforcement . | . . . . . Assault . | . . . . . Garrison . | . . . . . Intercept . | . . . . . Searches Triggered . | . . . . . Construction Impeded . | . . . . . Haulers Reinforced . | . . . . . Active Scanning Responses . | . . . . . Cargo Convoy Interrupts . | . . . . . Stealth | -11 -10 -10 -10 -9 --------- Run | Yrd Mat Min Exi Min Distress Signals 1 | . 1 . . . Communications Jammed . | . . . . . Distress Signals . | . . . . . Times Spotted 35 | . 19 7 . 9 Peak Tracking Total 5 | . 4 2 . 5 Tactical Retreats 1 | . . 1 . . Traps | -11 -10 -10 -10 -9 ------- Run | Yrd Mat Min Exi Min Traps Triggered . | . . . . . Indirectly . | . . . . . Trap Hack Attempts . | . . . . . Triggered . | . . . . . Disarmed . | . . . . . Reprogrammed . | . . . . . Reused . | . . . . . Traps Extracted . | . . . . . Installed . | . . . . . Triggered . | . . . . . Machines | -11 -10 -10 -10 -9 ---------- Run | Yrd Mat Min Exi Min Machines Disabled 1 | . . . . 1 Max in Single Turn 1 | . . . . 1 Machines Repaired . | . . . . . Machines Dismantled . | . . . . . Machines Sabotaged . | . . . . . Overloaded Fab Kills . | . . . . . Hacking | -11 -10 -10 -10 -9 --------- Run | Yrd Mat Min Exi Min Machines Accessed 7 | . 6 . 1 . Terminals 6 | . 6 . . . Fabricators . | . . . . . Repair Stations . | . . . . . Recycling Units . | . . . . . Scanalyzers . | . . . . . Garrison Access . | . . . . . Total Hacks 18 | . 17 . 1 . Successful 8 | . 7 . 1 . Failed 10 | . 10 . . . Catastrophic 1 | . 1 . . . Database Lockouts . | . . . . . Manual 12 | . 11 . 1 . Terminals 17 | . 17 . . . Fabricators . | . . . . . Repair Stations . | . . . . . Recycling Units . | . . . . . Scanalyzers . | . . . . . Garrison Access . | . . . . . Terminal Hacks 8 | . 7 . 1 . Robot Analysis 1 | . 1 . . . Branch Access Points 1 | . 1 . . . Locate Traps 3 | . 3 . . . Hauler Manifests 1 | . 1 . . . Zone Layout 1 | . 1 . . . Derelict Proto ID Bank 1 | . . . 1 . Fabricator Hacks . | . . . . . Repair Station Hacks . | . . . . . Recycling Unit Hacks . | . . . . . Scanalyzer . | . . . . . Garrison Access Hacks . | . . . . . Unauthorized Hacks . | . . . . . Terminals . | . . . . . Fabricators . | . . . . . Repair Stations . | . . . . . Recycling Units . | . . . . . Scanalyzers . | . . . . . Garrison Access . | . . . . . Data Cores Recovered 1 | . 1 . . . Used . | . . . . . Hacking Detections 5 | . 5 . . . Full Trace Events 1 | . 1 . . . Feedback Events 1 | . 1 . . . Corruption 1 | . 1 . . . Feedback Blocked . | . . . . . Robot Schematics Acquired . | . . . . . Robots Built . | . . . . . Authchips . | . . . . . Time . | . . . . . Total Robot Build Rating . | . . . . . Part Schematics Acquired . | . . . . . Parts Built . | . . . . . Authchips . | . . . . . Time . | . . . . . Total Part Build Rating . | . . . . . Parts Repaired . | . . . . . Time . | . . . . . Parts Recycled . | . . . . . Recycled Matter . | . . . . . Retrieved Matter . | . . . . . Retrieved Components . | . . . . . Parts Scanalyzed . | . . . . . Part Schematics Acquired . | . . . . . Parts Damaged . | . . . . . Bothacking | -11 -10 -10 -10 -9 ------------ Run | Yrd Mat Min Exi Min Used RIF Installer . | . . . . . Robots Hacked . | . . . . . Non-combat . | . . . . . Combat . | . . . . . Robot Hacks Applied . | . . . . . Relay Couplers Released . | . . . . . Fabnet Peak Effective % . | . . . . . Robots Rewired . | . . . . . Allies Hacked . | . . . . . Hacks Repelled . | . . . . . Allies | -11 -10 -10 -10 -9 -------- Run | Yrd Mat Min Exi Min Total Allies . | . . . . . Largest Group . | . . . . . Highest-Rated Group . | . . . . . Highest-Rated Ally . | . . . . . Total Orders . | . . . . . Ally Attacks . | . . . . . Total Damage . | . . . . . Kills . | . . . . . Allies Corrupted . | . . . . . Allies Melted . | . . . . . Intel | -11 -10 -10 -10 -9 ------- Run | Yrd Mat Min Exi Min Robot Analysis Total 1 | . 1 . . . Derelict Logs Recovered . | . . . . . Drone Launches . | . . . . . Drone Recoveries . | . . . . . Exploration | -11 -10 -10 -10 -9 ------------- Run | Yrd Mat Min Exi Min Turns Passed 3663 | 120 1944 847 648 104 Spaces Moved 1441 | 66 756 322 270 27 Core 9 | 8 . . . 1 Treads 1432 | 58 756 322 270 26 Legs . | . . . . . Wheels . | . . . . . Hover . | . . . . . Flight . | . . . . . Fastest Speed 50 | 50 160 240 240 160 Average Speed 235 | 155 237 240 240 254 Slowest Speed 700 | 160 240 240 240 700 Overloaded Moves . | . . . . . Propulsion Burnouts . | . . . . . Robots Hopped . | . . . . . Cave-ins Triggered . | . . . . . Exploration Rate (%) 44 | 5 89 55 61 14 Regions Visited 4 Branch Regions 3 Pre-discovered Areas 1 | . . 1 . . Known Exits Taken 1 | . 1 . . . Unknown Exits Taken 3 | 1 . 1 1 . Scrap Searched 1 | . . 1 . . Spaces Dug . | . . . . . Terrain Destroyed 75 | . . . . 75 Melee . | . . . . . Projectile . | . . . . . AOE 75 | . . . . 75 Terrain Rammed . | . . . . . Walls Destroyed . | . . . . . Machines Disabled . | . . . . . Actions | -11 -10 -10 -10 -9 --------- Run | Yrd Mat Min Exi Min Total 1580 | 78 823 361 272 46 Wait 16 | . 11 5 . . Move 1437 | 65 755 321 269 27 Hop . | . . . . . Pick Up 19 | 4 9 5 1 . Fast Attach 8 | 7 . 1 . . Attach 1 | . . 1 . . Detach . | . . . . . Swap 12 | 1 3 4 . 4 Drop 11 | . 3 5 2 1 Fire 72 | 1 38 19 . 14 Melee . | . . . . . Ram . | . . . . . Kick . | . . . . . Crush 4 | . 4 . . . Escape Stasis . | . . . . . Rewire . | . . . . . Trap . | . . . . . Miscellaneous . | . . . . . Route ------- -11/Scrapyard -10/Materials (discovered 5 exits: [*Mat x3] / *Min x2) -10/Mines (discovered 2 exits: [*Mat] / *Exi) -10/Exiles -9/Mines History --------- Turn | Location | Event 12 | -11/Scrapyard | Discovered new exit (range 16) 121 | -11/Scrapyard | Entered Materials 309 | -10/Materials | Build established: Mutant 524 | -10/Materials | Discovered new exit (range 6) 816 | -10/Materials | Discovered new exit (range 5) 1027 | -10/Materials | Discovered new exit (range 7) 1253 | -10/Materials | Discovered new exit (range 16) 1343 | -10/Materials | Discovered new exit (range 14) 1964 | -10/Materials | Identified exit to Mines 2065 | -10/Materials | Entered Mines 2109 | -10/Mines | Joined a pair of Derelicts in attacking an 0b10 outpost 2415 | -10/Mines | Build established: Scavenger-Mutant 2780 | -10/Mines | Core integrity fell below 50% 2790 | -10/Mines | Discovered new exit (range 6) 2819 | -10/Mines | Learned location of Storage (-8) 2895 | -10/Mines | Deemed a non-threat by the Exiles lab entrance 2898 | -10/Mines | Discovered new exit (range 5) 2912 | -10/Mines | Entered Exiles 2987 | -10/Exiles | Met 8R-AWN 3025 | -10/Exiles | Met EX-HEX 3100 | -10/Exiles | Met EX-BIN 3133 | -10/Exiles | Aligned with FarCom system 3136 | -10/Exiles | Given EX-Vault access code 3205 | -10/Exiles | Opened EX-Vault 3239 | -10/Exiles | Found Trap Reconfigurator 3288 | -10/Exiles | Warned to stay clear of 0b10 Research branches 3440 | -10/Exiles | Met EX-DEC 3529 | -10/Exiles | Discovered new exit (range 14) 3560 | -10/Exiles | Left Exiles lab with Trap Reconfigurator 3560 | -10/Exiles | Entered Mines 3656 | -9/Mines | Core integrity fell below 20% 3664 | -9/Mines | Destroyed by G-34 Mercenary with Small Laser Last Messages --------------- 03635_ Lgt. Angular Momentum Engine destroyed. 03636_ S-10 Pest destroyed. 03638_ G-47 Trooper destroyed. 03641_ U-05 Engineer lays Concrete. 03645_ Grenade Launcher destroyed. 03646_ U-05 Engineer lays Concrete. 03650_ The unstable cave ceiling collapses. 03650_ U-05 Engineer builds a Wall. 03654_ The unstable cave ceiling collapses. 03655_ U-05 Engineer lays Concrete. 03656_ Assault Rifle destroyed. 03657_ U-05 Engineer lays Concrete. 03658_ Lgt. Treads destroyed. 03658_ U-05 Engineer lays Concrete. 03660_ The unstable cave ceiling collapses. 03660_ U-05 Engineer lays Concrete. 03660_ Lgt. Treads destroyed. 03662_ U-05 Engineer lays Concrete. 03664_ The unstable cave ceiling collapses. 03664_ U-05 Engineer lays Concrete. Map ----- +----------------------------------------------------+ | | | | | | | | | | | | | | | | | | | | | | | | | | | | | | | | | ??????????????????#?##???????????????????????????? | | ?????????????????## # ###??####??????????????????? | | ?????????????????# # ### ##????????######???? | | ????????????###### # ##??????## # ###?? | | ???????????? [ ######## #?? | | ?????????????? = g ! #?? | | ?????????????????# = #?? | | ?????????????????# # #### #?? | | ?????????????????# u ####?#" #?? | | ?????????????????#### @ ###????#" #?? | | ??????????????# #?????## #?? | | ??????????????######## # ##??????## ##?? | | ?????????????????????# ##????????## #??? | | ????????????????????# [[ #?????????######??? | | ??????????????????? #?????????????????? | | ?????????????????? = #?????????????????? | | ????????????????? #?????????????????? | | ???????????????# t ss ####?????????????????? | | ?????????????? t #????????????????????? | | ?????????????? ## ????????????????????? | | ??????????????## ###?## ????????????????????? | | ????????????????# #?????##t ????????????????????? | | ?????????????????????????? ????????????????????? | | ??????????????????????????# #???????????????????? | | ??????????????????????????? #????????????????????? | | ?????????????????????????????????????????????????? | | ?????????????????????????????????????????????????? | | ?????????????????????????????????????????????????? | | ?????????????????????????????????????????????????? | | ?????????????????????????????????????????????????? | | ?????????????????????????????????????????????????? | | ?????????????????????????????????????????????????? | | ?????????????????????????????????????????????????? | | ?????????????????????????????????????????????????? | +----------------------------------------------------+ Best States ------------- Heat Dissipation 25 Energy Generation 18 Energy Capacity 250 Matter Stores 300 Matter Capacity 300 Sight Range 16 Terrain Scan Density 10 Evasion (%) 40 Targeting Accuracy 5 Recoil Reduction 2 Item Schematics ----------------- None Robot Schematics ------------------ None Fabricated ------------ Nothing Alien Tech Used ----------------- None Achievements -------------- None Challenges ------------ None Game ------ Seed DataShrapnelActivator Manual? 0 Play Time 00:14:45 Cumulative 9.7 hours Start 2024.04.21 @ 20:30:30 End 2024.04.22 @ 17:17:11 Sessions 3 Manual Loads 0 Difficulty Rogue Special Mode None Game No. 12 Rogue 12 Adventurer 0 Explorer 0 Win Type - Total 1 Types 1/0/0/0/0/0/0/0/0 Lore% 19 Gallery% 16 Achievement% 20 Wizard Run 0 Options --------- Layout 1 ASCII 0 Keyboard 0 Movement Arrows Keybinds 0 Fullscreen 1 Font 24/Smallcaps Map View 50x35 Zoom Use 0% Tactical HUD 1 Map Filters NONE Filters NONE Steam 1 RUN: 59890fc1-faae-4175-8e8a-bc4ff7a6cb59